[Event "54th Rubinstein Memorial-A 2018"]
[Site "Polanica-Zdroj"]
[Date "2018.08.19"]
[Round "2"]
[White "Manik, Mikulas"]
[Black "Klepek, Witold"]
[Result "1/2-1/2"]
[ECO "C11"]
[WhiteElo "2408"]
[BlackElo "2139"]
[Annotator "NA"]
[PlyCount "68"]
[EventDate "2018.08.18"]
[EventType "swiss"]
[EventCountry "POL"]
[SourceTitle "playchess.com"]
[Source "ChessBase"]
[SourceQuality "1"]
[TimeControl "40/5400+30:1800+30"]

1. e4 {Ftacnik,L} e6 2. d4 d5 3. Nc3 Nf6 4. e5 Nfd7 5. f4 c5 6. Nf3 Nc6 7. Be3 a6 8. Qd2 b5 9. dxc5 Bxc5 10. Ne2 {C11: French: Classical System: 4 e5 and 4 Bg5 dxe4} Qb6 11. Bxc5 Nxc5 12. Ned4 Nxd4 13. Qxd4 b4 {[#]} 14. h4 $146 ({Better is} 14. Nd2 $11) ({Predecessor:} 14. a3 Rb8 15. Be2 a5 16. axb4 axb4 17. O-O O-O {1-0 (42) Leko,P (2737)-Ivanchuk,V (2769) London 2012 CBM 151 [Ftacnik,L]}) 14... a5 15. h5 (15. a3 $5 {[%cal Ra3b4]} Rb8 16. axb4 axb4 17. Be2 $11) 15... h6 16. O-O-O ({White should try} 16. a3 $11 Rb8 17. axb4 axb4 18. Be2) 16... Ba6 ({Black should play} 16... a4 $15) 17. g4 (17. f5 $11) 17... Rc8 18. Kb1 Bxf1 19. Rhxf1 Na4 20. Qxb6 Nxb6 21. b3 Ke7 $11 22. Kb2 Rc3 23. Rd3 Rhc8 24. Nd4 Nd7 25. Rxc3 Rxc3 26. a3 f6 27. axb4 axb4 28. exf6+ Nxf6 29. Re1 Ne4 30. Ra1 Rg3 31. f5 Rxg4 32. Ra7+ Kf6 33. fxe6 Nd6 34. Rd7 Ke5 1/2-1/2

[Event "54th Rubinstein Memorial-A 2018"]
[Site "Polanica-Zdroj"]
[Date "2018.08.19"]
[Round "2"]
[White "Nurkiewicz, Maciej"]
[Black "Jankowiak, Tomasz"]
[Result "1-0"]
[ECO "C41"]
[WhiteElo "2371"]
[BlackElo "2117"]
[Annotator "NA"]
[PlyCount "37"]
[EventDate "2018.08.18"]
[EventType "swiss"]
[EventCountry "POL"]
[SourceTitle "playchess.com"]
[Source "ChessBase"]
[SourceQuality "1"]
[TimeControl "40/5400+30:1800+30"]

1. e4 {[%emt 0:00:00]} d6 {[%emt 0:00:00]} 2. d4 {[%emt 0:00:00]} Nf6 {[%emt 0:00:00]} 3. Nc3 {[%emt 0:00:00]} e5 {[%emt 0:00:00]} 4. Nf3 {[%emt 0:00:04]} Nbd7 {[%emt 0:00:00]} 5. g4 {[%emt 0:00:13]} Nxg4 {[%emt 0:02:40]} 6. Rg1 {[%emt 0:00:07]} h5 {[%emt 0:01:55]} 7. h3 {[%emt 0:07:03]} Nh6 {[%emt 0:00:09]} 8. Bg5 {[%emt 0:04:10]} f6 {[%emt 0:05:44]} 9. Be3 {[%emt 0:01:42]} g5 $16 {[%emt 0:18:58]} (9... Nf7 $1 $11 {remains equal.}) 10. Nxg5 {[%emt 0:44:01]} fxg5 {[%emt 0:20:37]} 11. Bxg5 Be7 12. Bc4 {[%emt 0:02:21]} Bxg5 {[%emt 0:27:40]} 13. Qxh5+ {[%emt 0:00:13]} Kf8 {[%emt 0:00:09]} 14. Rxg5 {[%emt 0:01:40]} Nb6 {[%emt 0:18:42]} 15. Rg8+ {[%emt 0:00:59]} Rxg8 {[%emt 0:00:53]} 16. Qxh6+ {[%emt 0:00:06]} Ke8 {[%emt 0:07:27]} 17. Qh5+ {[%emt 0:02:28]} Kd7 {[%emt 0:01:18]} 18. Qf5+ {[%emt 0:00:08]} Kc6 {[%emt 0:00:24]} 19. Bb5# {Kd5} 1-0

[Event "54th Rubinstein Memorial-A 2018"]
[Site "Polanica-Zdroj"]
[Date "2018.08.19"]
[Round "2"]
[White "Djuric, Stefan"]
[Black "Domanski, Lukasz"]
[Result "1-0"]
[ECO "E92"]
[WhiteElo "2352"]
[BlackElo "2094"]
[Annotator "NA"]
[PlyCount "55"]
[EventDate "2018.08.18"]
[EventType "swiss"]
[EventCountry "POL"]
[SourceTitle "playchess.com"]
[Source "ChessBase"]
[SourceQuality "1"]
[TimeControl "40/5400+30:1800+30"]

1. Nf3 {[%emt 0:09:54]} d6 {[%emt 0:00:00]} 2. d4 {[%emt 0:00:29]} Nf6 {[%emt 0:00:01]} 3. c4 {[%emt 0:01:34]} g6 {[%emt 0:01:03]} 4. Nc3 {[%emt 0:00:21]} Bg7 {[%emt 0:00:14]} 5. e4 {[%emt 0:00:14]} O-O {[%emt 0:00:26]} 6. Be2 {[%emt 0:00:16]} e5 {[%emt 0:00:16]} 7. Be3 {[%emt 0:00:16]} exd4 {[%emt 0:02:49]} 8. Nxd4 {[%emt 0:00:13]} Re8 {[%emt 0:05:55]} 9. f3 {[%emt 0:00:13]} c6 {[%emt 0:01:32]} 10. Qd2 {[%emt 0:00:55]} d5 {[%emt 0:09:43]} 11. exd5 {[%emt 0:00:22]} cxd5 {[%emt 0:00:44]} 12. c5 {[%emt 0:00:14]} Nc6 {[%emt 0:06:13]} 13. Bf2 {[%emt 0:09:41]} Be6 {[%emt 0:11:36]} 14. O-O {[%emt 0:02:48] LiveBook: 5 Games} Nd7 $14 {[%emt 0:06:44]} 15. Rfd1 Qe7 {[%emt 0:09:12]} 16. Bb5 {[%emt 0:15:28]} Rac8 {[%emt 0:06:02]} 17. Nxe6 {[%emt 0:02:05]} Bxc3 {[%emt 0:00:56]} 18. Qxc3 {[%emt 0:04:48]} fxe6 {[%emt 0:01:19]} 19. b4 {[%emt 0:00:19]} Qf6 {[%emt 0:08:01]} 20. Qe1 {[%emt 0:01:01]} a6 {[%emt 0:05:15]} 21. Be2 {[%emt 0:01:57]} Nde5 {[%emt 0:11:11]} 22. Rab1 {[%emt 0:06:27]} Ra8 {[%emt 0:06:07]} 23. Rb3 {[%emt 0:06:22]} Red8 {[%emt 0:03:05]} 24. Bf1 {[%emt 0:06:30]} Nf7 {[%emt 0:01:51]} 25. a4 {[%emt 0:01:19]} a5 {[%emt 0:00:33]} 26. b5 {[%emt 0:04:10]} Ne7 {[%emt 0:00:44]} 27. f4 {[%emt 0:02:25]} d4 {[%emt 0:01:20]} 28. Bh4 {[%emt 0:00:47]} 1-0

[Event "54th Rubinstein Memorial-A 2018"]
[Site "Polanica-Zdroj"]
[Date "2018.08.19"]
[Round "2"]
[White "Nowak, Kamil"]
[Black "Adamczewski, Maciej"]
[Result "0-1"]
[ECO "C11"]
[WhiteElo "2313"]
[BlackElo "2061"]
[Annotator "NA"]
[PlyCount "89"]
[EventDate "2018.08.18"]
[EventType "swiss"]
[EventCountry "POL"]
[SourceTitle "playchess.com"]
[Source "ChessBase"]
[SourceQuality "1"]
[TimeControl "40/5400+30:1800+30"]

1. e4 {[%emt 0:00:00]} e6 {[%emt 0:00:00]} 2. d4 {[%emt 0:00:00]} d5 {[%emt 0:00:00]} 3. Nc3 {[%emt 0:00:00]} Nf6 {[%emt 0:00:00]} 4. e5 {[%emt 0:00:18]} Nfd7 {[%emt 0:00:00]} 5. f4 {[%emt 0:00:35]} c5 {[%emt 0:00:12]} 6. Nf3 {[%emt 0:00:14]} Nc6 {[%emt 0:00:11]} 7. Be3 {[%emt 0:00:10]} Be7 {[%emt 0:00:06]} 8. Qd2 {[%emt 0:00:47]} O-O {[%emt 0:00:10]} 9. dxc5 {[%emt 0:01:13]} Bxc5 {[%emt 0:01:55]} 10. O-O-O {[%emt 0:01:24]} a6 {[%emt 0:07:36]} 11. Bxc5 {[%emt 0:11:29]} Nxc5 {[%emt 0:00:42]} 12. Nd4 {[%emt 0:11:24]} (12. Qe3 $11 Qa5 13. Kb1) 12... Bd7 {[%emt 0:06:18]} 13. Qf2 {[%emt 0:10:02]} Nxd4 14. Qxd4 {[%emt 0:00:06]} Rc8 {[%emt 0:04:31]} 15. Bd3 $15 {[%emt 0:01:18]} b5 16. Kb1 {[%emt 0:01:51]} b4 {[%emt 0:24:28]} 17. Ne2 {[%emt 0:12:36]} Qa5 {[%emt 0:04:18]} 18. Nc1 {[%emt 0:03:17]} Ba4 {[%emt 0:04:11]} 19. b3 {[%emt 0:04:16]} Bb5 {[%emt 0:00:40]} 20. g4 {[%emt 0:01:08]} Bxd3 {[%emt 0:01:32]} 21. cxd3 {[%emt 0:00:07]} Qc7 {[%emt 0:09:42]} 22. Rd2 {[%emt 0:06:08]} a5 {[%emt 0:01:21]} 23. Ne2 {[%emt 0:02:14]} a4 {[%emt 0:12:13]} 24. Rc2 {[%emt 0:00:43]} axb3 {[%emt 0:00:38]} 25. axb3 {[%emt 0:00:02]} Qa5 {[%emt 0:01:38]} 26. Nc1 {[%emt 0:00:45]} Na6 {[%emt 0:04:09]} 27. Ra2 {[%emt 0:02:17]} Qb5 {[%emt 0:00:18]} 28. h4 {[%emt 0:00:52]} Rc3 {[%emt 0:01:54]} 29. Rhh2 {[%emt 0:02:30]} Nc5 {[%emt 0:01:24]} 30. Rhc2 {[%emt 0:03:01]} Nxb3 {[%emt 0:00:37]} 31. Nxb3 {[%emt 0:00:06]} Rxb3+ {[%emt 0:00:03]} 32. Rab2 {[%emt 0:00:08]} Rxd3 {[%emt 0:00:22]} 33. Qxb4 {[%emt 0:00:22]} Rd1+ {[%emt 0:00:17]} 34. Rc1 {[%emt 0:00:34]} Qd3+ {[%emt 0:01:17]} 35. Rbc2 {[%emt 0:00:06]} Rc8 {[%emt 0:00:57]} 36. Kb2 {[%emt 0:01:40]} Rxc1 {[%emt 0:00:44]} 37. Rxc1 {[%emt 0:00:14]} Qe2+ {[%emt 0:01:19]} 38. Kb1 {[%emt 0:00:04]} Ra8 {[%emt 0:00:50]} 39. Rc2 {[%emt 0:01:37]} Qd1+ {[%emt 0:01:17]} 40. Rc1 {[%emt 0:00:00]} Qd3+ {[%emt 0:00:00]} 41. Kb2 {[%emt 0:00:40]} Qa6 {[%emt 0:01:09]} 42. Kc2 {[%emt 0:01:39]} Qe2+ {[%emt 0:02:46]} 43. Kb3 {[%emt 0:00:05]} Qa2+ {[%emt 0:00:20]} 44. Kc3 {[%emt 0:00:06]} Ra3+ {[%emt 0:00:43]} 45. Kd4 0-1

[Event "54th Rubinstein Memorial-A 2018"]
[Site "Polanica-Zdroj"]
[Date "2018.08.19"]
[Round "2"]
[White "Reza, Wojciech"]
[Black "Harazinska, Magdalena"]
[Result "1-0"]
[ECO "B90"]
[WhiteElo "2303"]
[BlackElo "2035"]
[Annotator "NA"]
[PlyCount "87"]
[EventDate "2018.08.18"]
[EventType "swiss"]
[EventCountry "POL"]
[SourceTitle "playchess.com"]
[Source "ChessBase"]
[SourceQuality "1"]
[TimeControl "40/5400+30:1800+30"]

1. e4 {[%emt 0:00:00]} c5 {[%emt 0:00:00]} 2. Nf3 {[%emt 0:00:29]} d6 {[%emt 0:00:00]} 3. d4 {[%emt 0:02:11]} cxd4 {[%emt 0:00:11]} 4. Nxd4 {[%emt 0:00:08]} Nf6 {[%emt 0:00:18]} 5. Nc3 {[%emt 0:00:28]} a6 {[%emt 0:00:22]} 6. Qf3 {[%emt 0:08:49]} e6 {[%emt 0:06:14]} 7. g4 {[%emt 0:04:24]} Nc6 {[%emt 0:11:49]} 8. Nxc6 {[%emt 0:10:32]} bxc6 {[%emt 0:00:01] LiveBook: 12 Games} 9. Bg2 $11 {[%emt 0:15:48]} Bb7 {[%emt 0:09:10]} 10. O-O {[%emt 0:22:34]} Be7 {[%emt 0:01:52]} 11. g5 {[%emt 0:09:29]} Nd7 {[%emt 0:03:05]} 12. Qg3 {[%emt 0:00:05]} d5 {[%emt 0:09:41]} 13. b3 {[%emt 0:06:01]} O-O {[%emt 0:03:23]} 14. f4 {[%emt 0:05:02]} Qc7 {[%emt 0:09:01]} 15. Bd2 {[%emt 0:02:36]} Rfd8 {[%emt 0:12:31]} 16. h4 {[%emt 0:02:55]} Nc5 {[%emt 0:05:43]} 17. e5 {[%emt 0:05:13]} d4 {[%emt 0:04:49]} 18. Nd1 {[%emt 0:00:17]} Nd7 {[%emt 0:05:56]} 19. Nb2 {[%emt 0:02:49]} g6 {[%emt 0:03:33]} 20. Nc4 {[%emt 0:01:16]} a5 {[%emt 0:00:32]} 21. Qe1 {[%emt 0:00:06]} Rdc8 {[%emt 0:04:23]} 22. Bxa5 {[%emt 0:01:32]} Qb8 {[%emt 0:00:05]} 23. Rf3 {[%emt 0:04:59]} Qa7 {[%emt 0:03:37]} 24. Kh2 {[%emt 0:02:54]} Ba6 {[%emt 0:01:02]} 25. Nb2 {[%emt 0:02:38]} Ba3 {[%emt 0:02:03]} 26. Nd1 {[%emt 0:00:34]} c5 {[%emt 0:00:59]} 27. Rh3 {[%emt 0:01:32]} Bb7 {[%emt 0:00:23]} 28. Bxb7 {[%emt 0:00:10]} Qxb7 {[%emt 0:00:01]} 29. h5 {[%emt 0:00:12]} Bb4 {[%emt 0:01:19]} 30. Bxb4 {[%emt 0:01:18]} cxb4 {[%emt 0:00:02]} 31. Qd2 {[%emt 0:00:53]} Qc6 {[%emt 0:01:50]} 32. Rd3 {[%emt 0:01:24]} Qxc2 {[%emt 0:00:53]} 33. Rxd4 {[%emt 0:00:29]} Nf8 {[%emt 0:01:08]} 34. h6 {[%emt 0:00:55]} Ra7 {[%emt 0:00:27]} 35. Ne3 {[%emt 0:00:48]} Qxd2+ {[%emt 0:00:30]} 36. Rxd2 {[%emt 0:00:02]} Rca8 {[%emt 0:00:09]} 37. Ng4 {[%emt 0:00:34]} f5 {[%emt 0:00:43]} 38. exf6 {[%emt 0:00:49]} Nd7 {[%emt 0:00:11]} 39. Rad1 {[%emt 0:01:20]} Rxa2 {[%emt 0:00:32]} 40. Rxa2 {[%emt 0:00:00]} Rxa2+ {[%emt 0:00:00]} 41. Kg3 {[%emt 0:01:27]} Nf8 {[%emt 0:00:48]} 42. Rd8 {[%emt 0:00:25]} Rb2 {[%emt 0:00:11]} 43. Ne5 {[%emt 0:00:09]} Rxb3+ {[%emt 0:00:04]} 44. Kg4 {[%emt 0:00:10]} 1-0

[Event "54th Rubinstein Memorial-A 2018"]
[Site "Polanica-Zdroj"]
[Date "2018.08.19"]
[Round "2"]
[White "Cherepov, Alexej"]
[Black "Rosicki, Marcin"]
[Result "1/2-1/2"]
[ECO "A56"]
[WhiteElo "2245"]
[BlackElo "2002"]
[Annotator "NA"]
[PlyCount "76"]
[EventDate "2018.08.18"]
[EventType "swiss"]
[EventCountry "POL"]
[SourceTitle "playchess.com"]
[Source "ChessBase"]
[SourceQuality "1"]
[TimeControl "40/5400+30:1800+30"]

1. d4 {[%emt 0:00:00]} Nf6 {[%emt 0:00:00]} 2. c4 {[%emt 0:00:00]} c5 {[%emt 0:00:00]} 3. Nf3 {[%emt 0:00:59]} cxd4 {[%emt 0:01:10]} 4. Nxd4 {[%emt 0:00:05]} e5 {[%emt 0:00:19]} 5. Nb5 {[%emt 0:00:27]} d5 {[%emt 0:01:07]} 6. cxd5 {[%emt 0:00:06]} Bc5 {[%emt 0:00:06]} 7. N5c3 {[%emt 0:02:28]} O-O {[%emt 0:00:35]} 8. g3 {[%emt 0:00:13]} Qb6 {[%emt 0:10:18]} 9. e3 {[%emt 0:02:09]} Bg4 {[%emt 0:06:54]} 10. Be2 {[%emt 0:16:16] LiveBook: 64 Games} Bf5 {[%emt 0:12:55]} 11. Nd2 $14 {[%emt 0:01:39]} Bb4 {[%emt 0:13:03]} 12. Qb3 {[%emt 0:25:47]} Ne4 {[%emt 0:15:11]} 13. Ndxe4 {[%emt 0:04:10]} Bxe4 {[%emt 0:00:20]} 14. O-O {[%emt 0:00:03]} Bxc3 {[%emt 0:03:21]} 15. Qxc3 {[%emt 0:00:06]} Nd7 {[%emt 0:05:53]} 16. Qc4 {[%emt 0:21:40]} Nf6 {[%emt 0:00:21]} 17. Qb5 {[%emt 0:00:07]} Qxb5 {[%emt 0:06:35]} 18. Bxb5 {[%emt 0:00:05]} Bxd5 {[%emt 0:01:23]} 19. Bd2 {[%emt 0:05:57]} Ne4 {[%emt 0:01:25]} 20. Rfd1 {[%emt 0:01:20]} Nxd2 {[%emt 0:02:24]} 21. Rxd2 {[%emt 0:00:02]} Bf3 {[%emt 0:00:10]} 22. Be2 {[%emt 0:01:15]} Bxe2 {[%emt 0:00:18]} 23. Rxe2 {[%emt 0:00:03]} Rfd8 {[%emt 0:00:20]} 24. Rc1 {[%emt 0:00:06]} Rac8 {[%emt 0:00:06]} 25. Rxc8 {[%emt 0:00:39]} Rxc8 {[%emt 0:00:01]} 26. Rd2 {[%emt 0:00:06]} Kf8 {[%emt 0:06:14]} 27. Rd7 {[%emt 0:00:17]} Rb8 {[%emt 0:00:07]} 28. g4 {[%emt 0:00:30]} a6 {[%emt 0:00:35]} 29. Kg2 {[%emt 0:00:17]} b5 {[%emt 0:00:49]} 30. b4 {[%emt 0:09:34]} Rb6 {[%emt 0:01:06]} 31. h4 {[%emt 0:01:33]} Rc6 {[%emt 0:00:58]} 32. Ra7 {[%emt 0:00:22]} Rc4 {[%emt 0:01:05]} 33. a3 {[%emt 0:00:40]} Rxg4+ {[%emt 0:00:05]} 34. Kh3 {[%emt 0:01:46]} Rg6 {[%emt 0:00:22]} 35. Ra8+ {[%emt 0:00:13]} Ke7 {[%emt 0:00:04]} 36. Ra7+ {[%emt 0:00:02]} Ke8 {[%emt 0:03:39]} 37. Ra8+ {[%emt 0:00:05]} Ke7 {[%emt 0:01:48]} 38. Ra7+ {[%emt 0:00:03]} Ke8 {[%emt 0:01:41]} 1/2-1/2

[Event "54th Rubinstein Memorial-A 2018"]
[Site "Polanica-Zdroj"]
[Date "2018.08.19"]
[Round "2"]
[White "Kumala, Aleksander"]
[Black "Vanduyfhuys, Daria"]
[Result "0-1"]
[ECO "D00"]
[WhiteElo "2238"]
[BlackElo "1878"]
[Annotator "NA"]
[PlyCount "82"]
[EventDate "2018.08.18"]
[EventType "swiss"]
[EventCountry "POL"]
[SourceTitle "playchess.com"]
[Source "ChessBase"]
[SourceQuality "1"]
[TimeControl "40/5400+30:1800+30"]

1. d4 {[%emt 0:00:00]} d5 {[%emt 0:00:00]} 2. Nc3 {[%emt 0:00:00]} Nf6 {[%emt 0:00:43]} 3. Bf4 {[%emt 0:00:00]} Bf5 {[%emt 0:01:46]} 4. f3 {[%emt 0:00:00]} e6 {[%emt 0:01:29]} 5. g4 {[%emt 0:00:00]} Bg6 {[%emt 0:00:56]} 6. h4 {[%emt 0:00:00]} h5 {[%emt 0:02:03]} 7. g5 {[%emt 0:00:03]} Ng8 {[%emt 0:02:58]} 8. e3 {[%emt 0:07:05]} Bd6 {[%emt 0:02:31]} 9. Nh3 {[%emt 0:00:08]} Ne7 {[%emt 0:03:17]} 10. Qd2 {[%emt 0:03:37]} Nbc6 {[%emt 0:17:16]} 11. Bd3 {[%emt 0:07:08]} Qd7 {[%emt 0:03:34]} 12. Nb5 {[%emt 0:06:48]} (12. Bb5 $11) 12... Bxf4 {[%emt 0:01:27]} 13. Nxf4 {[%emt 0:00:08]} Bxd3 $11 {[%emt 0:00:37]} 14. Nxd3 {[%emt 0:01:52]} b6 15. Qc3 {[%emt 0:03:50]} f6 {[%emt 0:07:02]} 16. gxf6 {[%emt 0:01:14]} gxf6 {[%emt 0:00:16]} 17. Nf4 {[%emt 0:05:06]} a6 {[%emt 0:03:59]} 18. Na3 {[%emt 0:00:36]} O-O-O {[%emt 0:00:54]} 19. O-O-O {[%emt 0:01:27]} e5 {[%emt 0:04:45]} 20. dxe5 {[%emt 0:01:49]} fxe5 {[%emt 0:00:13]} 21. Nd3 {[%emt 0:01:33]} Qe6 {[%emt 0:01:21]} 22. Rhg1 {[%emt 0:05:53]} Rhg8 {[%emt 0:02:19]} 23. Nb4 {[%emt 0:07:45]} Nxb4 {[%emt 0:02:33]} 24. Qxb4 {[%emt 0:00:09]} Nf5 {[%emt 0:09:54]} 25. Rge1 {[%emt 0:07:03]} Qh6 {[%emt 0:01:52]} 26. Rd3 {[%emt 0:02:06]} Nxe3 {[%emt 0:06:39]} 27. Kb1 {[%emt 0:00:09]} Qf4 {[%emt 0:02:51]} 28. Qc3 {[%emt 0:01:05]} Rg6 {[%emt 0:07:40]} 29. b3 {[%emt 0:05:35]} d4 {[%emt 0:00:21]} 30. Qb4 {[%emt 0:00:56]} Qxf3 {[%emt 0:02:21]} 31. Qe7 {[%emt 0:00:51]} Qf6 {[%emt 0:00:30]} 32. Qb4 {[%emt 0:01:40]} Rg2 {[%emt 0:00:31]} 33. Qa4 {[%emt 0:00:29]} Kb7 {[%emt 0:00:49]} 34. b4 {[%emt 0:03:11]} e4 {[%emt 0:01:20]} 35. Rb3 {[%emt 0:00:37]} b5 {[%emt 0:00:54]} 36. Nxb5 {[%emt 0:01:04]} axb5 {[%emt 0:00:31]} 37. Qxb5+ {[%emt 0:00:09]} Qb6 {[%emt 0:00:16]} 38. Qxh5 {[%emt 0:00:23]} Qc6 {[%emt 0:01:44]} 39. c3 {[%emt 0:02:12]} dxc3 {[%emt 0:02:01]} 40. Rc1 {[%emt 0:00:00]} c2+ {[%emt 0:00:00]} 41. Ka1 {[%emt 0:01:37]} Rd1 {[%emt 0:02:07]} 0-1

[Event "54th Rubinstein Memorial-A 2018"]
[Site "Polanica-Zdroj"]
[Date "2018.08.19"]
[Round "2"]
[White "Wisniewski, Michal"]
[Black "Sabuk, Piotr"]
[Result "0-1"]
[ECO "A04"]
[WhiteElo "2122"]
[BlackElo "2377"]
[Annotator "NA"]
[PlyCount "110"]
[EventDate "2018.08.18"]
[EventType "swiss"]
[EventCountry "POL"]
[SourceTitle "playchess.com"]
[Source "ChessBase"]
[SourceQuality "1"]
[TimeControl "40/5400+30:1800+30"]

1. Nf3 {[%emt 0:00:00]} c5 {[%emt 0:00:39]} 2. c4 {[%emt 0:04:34]} Nf6 {[%emt 0:00:53]} 3. Nc3 {[%emt 0:01:36]} e6 {[%emt 0:08:23]} 4. e4 {[%emt 0:04:50]} d6 {[%emt 0:01:29]} 5. d4 {[%emt 0:00:25]} cxd4 {[%emt 0:00:32]} 6. Nxd4 {[%emt 0:00:06]} Be7 {[%emt 0:03:27]} 7. Be2 {[%emt 0:00:06]} O-O {[%emt 0:01:07]} 8. O-O {[%emt 0:00:05]} a6 {[%emt 0:03:48]} 9. Be3 {[%emt 0:00:22]} Qc7 {[%emt 0:01:22]} 10. Qd2 {[%emt 0:03:35]} b6 {[%emt 0:01:07]} 11. f3 {[%emt 0:01:29] LiveBook: 35 Games} Bb7 {[%emt 0:03:04]} 12. Rfc1 {[%emt 0:00:06]} Nbd7 {[%emt 0:15:19]} 13. Rab1 $14 {[%emt 0:06:35]} Rac8 14. b4 {[%emt 0:00:20]} Qb8 {[%emt 0:09:19]} 15. a4 {[%emt 0:22:42]} Rfe8 {[%emt 0:07:54]} 16. Qa2 {[%emt 0:10:37]} d5 {[%emt 0:05:10]} 17. cxd5 {[%emt 0:03:45]} exd5 {[%emt 0:00:46]} 18. Nxd5 {[%emt 0:00:13]} Rxc1+ {[%emt 0:02:05]} 19. Rxc1 {[%emt 0:08:03]} Nxd5 {[%emt 0:02:11]} 20. exd5 {[%emt 0:00:06]} Bd6 {[%emt 0:07:12]} 21. Nc6 {[%emt 0:02:05]} Bxh2+ {[%emt 0:02:17]} 22. Kf1 {[%emt 0:01:57]} Qd6 {[%emt 0:02:14]} 23. Qd2 {[%emt 0:13:44]} h5 {[%emt 0:06:03]} 24. b5 {[%emt 0:04:16]} axb5 {[%emt 0:04:09]} 25. axb5 {[%emt 0:00:01]} h4 {[%emt 0:07:21]} 26. Rc4 {[%emt 0:02:44]} Nf6 {[%emt 0:00:53]} 27. Rxh4 {[%emt 0:04:46]} Nxd5 {[%emt 0:00:53]} 28. Bd4 {[%emt 0:02:43]} Bxc6 {[%emt 0:02:43]} 29. bxc6 {[%emt 0:00:05]} Nf6 {[%emt 0:01:36]} 30. Qg5 {[%emt 0:01:49]} Be5 {[%emt 0:00:16]} 31. Bxe5 {[%emt 0:00:49]} Rxe5 {[%emt 0:00:12]} 32. Qc1 {[%emt 0:00:00]} Rc5 {[%emt 0:00:17]} 33. Qd1 {[%emt 0:01:16]} Qxd1+ {[%emt 0:01:05]} 34. Bxd1 {[%emt 0:00:01]} Rxc6 {[%emt 0:00:12]} 35. Ra4 {[%emt 0:00:34]} Rc7 {[%emt 0:01:01]} 36. Ra8+ {[%emt 0:00:06]} Kh7 {[%emt 0:00:04]} 37. Rb8 {[%emt 0:00:02]} Nd7 {[%emt 0:00:23]} 38. Rd8 {[%emt 0:00:13]} b5 {[%emt 0:00:35]} 39. Bc2+ {[%emt 0:01:28]} g6 {[%emt 0:00:32]} 40. Bb3 {[%emt 0:00:00]} Kg7 {[%emt 0:00:00]} 41. Ke2 {[%emt 0:04:57]} Kf6 {[%emt 0:05:27]} 42. f4 {[%emt 0:02:24]} Ke7 {[%emt 0:12:45]} 43. Rg8 {[%emt 0:03:54]} Rc3 {[%emt 0:00:34]} 44. Bd1 {[%emt 0:00:04]} Nf8 {[%emt 0:00:32]} 45. Kd2 {[%emt 0:00:27]} Ra3 {[%emt 0:02:38]} 46. g4 {[%emt 0:00:11]} Rg3 {[%emt 0:01:00]} 47. Rh8 {[%emt 0:00:18]} Ne6 {[%emt 0:06:01]} 48. Rb8 {[%emt 0:00:06]} Nd4 {[%emt 0:00:08]} 49. Rb6 {[%emt 0:00:11]} Ra3 {[%emt 0:01:46]} 50. f5 {[%emt 0:00:42]} g5 {[%emt 0:00:54]} 51. Rb7+ {[%emt 0:00:35]} Kf6 {[%emt 0:00:27]} 52. Rd7 {[%emt 0:01:01]} Nf3+ {[%emt 0:00:35]} 53. Kc1 {[%emt 0:01:26]} b4 {[%emt 0:01:14]} 54. Rb7 {[%emt 0:01:00]} Ra1+ {[%emt 0:00:52]} 55. Kc2 {[%emt 0:00:05]} b3+ {[%emt 0:00:37]} 0-1

[Event "54th Rubinstein Memorial-A 2018"]
[Site "Polanica-Zdroj"]
[Date "2018.08.19"]
[Round "2"]
[White "Mika, Tomasz"]
[Black "Lewtak, Damian"]
[Result "0-1"]
[ECO "E92"]
[WhiteElo "2120"]
[BlackElo "2369"]
[Annotator "NA"]
[PlyCount "60"]
[EventDate "2018.08.18"]
[EventType "swiss"]
[EventCountry "POL"]
[SourceTitle "playchess.com"]
[Source "ChessBase"]
[SourceQuality "1"]
[TimeControl "40/5400+30:1800+30"]

1. c4 {[%emt 0:00:00]} Nf6 {[%emt 0:00:00]} 2. Nf3 {[%emt 0:00:19]} g6 {[%emt 0:00:00]} 3. d4 {[%emt 0:00:30]} Bg7 {[%emt 0:00:00]} 4. Nc3 {[%emt 0:00:06]} d6 {[%emt 0:06:17]} 5. e4 {[%emt 0:00:09]} O-O {[%emt 0:00:08]} 6. Be2 {[%emt 0:00:17]} e5 {[%emt 0:00:14]} 7. Be3 {[%emt 0:05:02]} Ng4 {[%emt 0:07:31]} 8. Bg5 {[%emt 0:00:14]} f6 {[%emt 0:00:08]} 9. Bh4 {[%emt 0:01:58]} Nc6 {[%emt 0:02:17]} 10. d5 {[%emt 0:01:56]} Ne7 {[%emt 0:00:53]} 11. h3 {[%emt 0:00:59] E92: Königsindisch (Klassisches System)} (11. O-O g5 12. Bg3 h5 13. Nd2 f5 14. exf5 Nxf5 15. Nde4 Ngh6 16. Bxh5 g4 17. Bg6 Ne7 18. Bh5 Nef5 19. Bg6 Ne7 20. Bh5 Nef5 {½-½ (20) Ibrahimov,R (2518)-Amin,B (2689) Riadh 2017}) 11... Nh6 $1 {[%emt 0:00:07]} 12. g4 {[%emt 0:00:15]} Nf7 {[%emt 0:03:59] LiveBook: 7 Games} 13. Qd2 {[%emt 0:02:12]} c5 {[%emt 0:00:42]} 14. dxc6 $146 {[%emt 0:01:14]} ({Vorgänger:} 14. Nh2 Bh6 15. Qc2 Kg7 16. Nf1 Bd7 17. Ne3 a6 {½-½ (41) Savon,V-Doroshkievich,V Riga (Latvia) 1970}) 14... bxc6 {[%emt 0:00:06]} 15. O-O-O {[%emt 0:03:35]} Be6 {[%emt 0:01:08]} 16. Kb1 {[%emt 0:00:38]} Rb8 {[%emt 0:01:28]} 17. Ne1 {[%emt 0:01:09]} Qb6 {[%emt 0:03:26]} (17... c5 $17) 18. Ng2 {[%emt 0:01:12]} d5 {[%emt 0:02:44]} ({Black should try} 18... Qc5 $15) 19. Na4 {[%emt 0:05:04]} ({Schwächer ist} 19. exd5 cxd5 20. f4 Rfd8 $17) 19... Qc7 {[%emt 0:01:51]} ({But not} 19... Qb4 $6 20. Qxb4 Rxb4 21. Nc5 $16) 20. Nc5 {[%emt 0:02:10]} Bc8 {[%emt 0:00:18]} 21. cxd5 {[%emt 0:01:34]} cxd5 {[%emt 0:00:08]} 22. Rc1 $11 {[%emt 0:00:21]} Bh6 23. f4 {[%emt 0:03:47]} exf4 {[%emt 0:06:14]} 24. g5 {[%emt 0:13:41]} fxg5 {[%emt 0:00:29]} 25. Bf2 {[%emt 0:01:07]} f3 {[%emt 0:05:21]} 26. Bxf3 {[%emt 0:00:39]} g4 {[%emt 0:03:22]} 27. Be3 {[%emt 0:00:25]} gxf3 {[%emt 0:01:55]} 28. Bxh6 {[%emt 0:00:19]} fxg2 {[%emt 0:00:51]} 29. Ne6 {[%emt 0:05:08]} gxh1=Q {[%emt 0:03:26]} 30. Rxh1 {[%emt 0:00:53]} Bxe6 {[%emt 0:00:08]} 0-1